bitfinex/quotes_ETHUSD_20250602
["timestamp","ask_amount","ask_price","bid_price","bid_amount"]
[1748884088850,0.7925,2546.3,2545.4,0.03928172]
[1748884088996,0.03953791,2546.2,2545.5,3.92850127]
[1748884089335,9.437347,2546.0,2545.9,3.92788404]
[1748884089550,9.437347,2546.0,2545.8,3.92796174]
[1748884090039,9.437347,2546.0,2545.9,3.92788404]
[1748884090443,9.437347,2546.4,2546.2,3.92734976]
[1748884090598,0.56453791,2546.3,2546.1,3.92749799]
[1748884090814,0.56453791,2546.3,2546.0,3.92761071]
[1748884091008,9.437347,2546.1,2546.0,3.92761071]
[1748884091350,10.249247,2546.1,2545.8,3.92795181]
[1748884091655,0.03953791,2546.0,2545.7,3.92818839]
[1748884091821,9.437347,2545.8,2545.6,3.92827679]
[1748884092005,0.03953791,2545.7,2545.6,3.92827679]
[1748884092202,9.437347,2545.8,2545.7,3.92819263]
[1748884093106,9.437347,2545.8,2545.3,0.8271]
[1748884093307,9.437347,2545.8,2545.3,0.86638372]
[1748884093542,9.437347,2545.8,2545.7,3.92819263]
[1748884094973,0.7808,2545.6,2544.1,0.02]
[1748884095105,3.9305086,2544.2,2544.1,0.02]
[1748884095450,5.34053791,2544.2,2544.1,0.02]
[1748884095750,0.4319004,2544.2,2544.1,3.9506631]
[1748884095969,4.186,2544.3,2544.1,3.9506631]
[1748884096154,4.22553791,2544.3,2544.1,0.02]
[1748884096330,4.22553791,2544.3,2544.1,3.95065567]
[1748884097369,4.22553791,2544.3,2544.1,0.02]
[1748884097542,4.22553791,2544.3,2544.1,3.95065943]
[1748884097939,4.22553791,2544.3,2544.1,0.02]
[1748884098242,4.22553791,2544.3,2544.1,3.95054482]
[1748884098452,0.03953791,2544.3,2544.1,3.95054482]
[1748884098778,4.22053791,2544.3,2544.2,3.9305086]
[1748884098976,4.181,2544.3,2544.2,3.9305086]
[1748884099481,4.18,2544.3,2544.1,3.95059279]
[1748884100275,9.437347,2544.4,2544.1,3.95058024]
[1748884100454,4.178,2544.3,2544.2,3.9305086]
[1748884100650,4.177,2544.3,2544.1,0.02]
[1748884100987,10.194647,2544.7,2544.1,3.95063905]
[1748884101140,5.293,2544.6,2544.3,3.93027535]
[1748884101557,9.83249858,2544.7,2544.3,3.93027535]
[1748884101755,4.176,2544.5,2544.3,3.93027535]
[1748884101951,4.176,2544.5,2544.3,3.93035412]
[1748884102156,4.176,2544.5,2544.4,3.93019965]
[1748884103244,9.83249858,2544.7,2544.4,3.93019965]
[1748884103446,5.29,2544.6,2544.3,3.93027113]
[1748884103688,5.29,2544.6,2544.1,0.8391]
[1748884103987,5.29,2544.6,2544.4,3.93014281]
[1748884104193,11.20869407,2544.7,2544.4,3.93014281]
[1748884104357,5.288,2544.6,2544.4,3.93014281]
[1748884104681,5.288,2544.6,2544.3,3.93024087]
[1748884104980,9.437347,2544.5,2544.4,3.93011661]
[1748884105980,4.17,2544.6,2544.5,3.93004519]
[1748884106187,4.17,2544.6,2544.4,3.93010991]
[1748884106485,9.437347,2544.5,2544.4,3.93010991]
[1748884107255,17.02139686,2544.5,2544.1,0.02]
[1748884107455,9.437347,2544.2,2544.1,0.02]
[1748884107980,13.606347,2544.2,2544.1,0.02]
[1748884108184,13.606347,2544.2,2544.1,3.9506631]
[1748884108764,4.169,2544.2,2544.1,3.9506631]
[1748884109174,10.568347,2544.5,2544.4,3.93019965]
[1748884109373,14.733347,2544.5,2544.4,3.93019965]
[1748884109571,14.733347,2544.5,2544.1,0.02]
[1748884109572,0.55,2544.4,2544.1,0.02]
[1748884109869,9.437347,2544.2,2544.1,0.02]
[1748884110069,9.437347,2544.2,2544.1,3.9506631]
[1748884110908,9.437347,2544.2,2544.1,0.02]
[1748884111111,10.218347,2544.2,2544.1,0.02]
[1748884111272,11.6578817,2544.2,2544.1,0.02]
[1748884111621,16.1383903,2544.2,2544.1,0.02]
[1748884112390,12.2078817,2544.2,2544.1,0.02]
[1748884112705,16.1383903,2544.2,2544.1,0.02]
[1748884113711,1.3058,2543.8,2543.1,0.02]
[1748884113915,9.437347,2543.2,2543.1,3.95220872]
[1748884114897,9.437347,2543.2,2543.1,0.02]
[1748884115098,13.619347,2543.2,2543.1,3.95220872]
[1748884115286,13.619347,2543.2,2543.1,0.02]
[1748884116193,15.1699617,2543.2,2543.1,0.02]
[1748884116786,14.747347,2543.2,2543.1,3.95220872]
[1748884117226,14.747347,2543.2,2543.1,0.02]
[1748884117426,5.31,2543.2,2543.1,0.02]
[1748884117725,4.178,2543.3,2543.2,3.9320541]
[1748884118293,4.178,2543.3,2543.1,3.95215244]
[1748884118504,9.437347,2543.2,2543.1,3.95215244]
[1748884119427,9.437347,2543.2,2543.1,0.02]
[1748884119644,10.7988817,2543.2,2543.1,0.02]
[1748884119805,10.7988817,2543.2,2543.1,3.95220872]
[1748884120006,9.437347,2543.2,2543.1,3.95220872]
[1748884120211,4.176,2543.2,2543.1,0.02]
[1748884120410,4.176,2543.4,2543.3,3.9318764]
[1748884120604,0.03953791,2543.4,2543.2,3.9319814]
[1748884120803,9.437347,2543.3,2543.2,3.9320541]
[1748884122363,9.83313666,2543.3,2543.2,3.9320541]
[1748884122705,14.00713666,2543.3,2543.2,3.9320541]
[1748884122943,14.00713666,2543.3,2543.1,3.95212101]
[1748884123109,14.00713666,2543.3,2543.1,3.95213945]
[1748884123311,14.00713666,2543.3,2543.1,0.02]
[1748884124066,15.17116611,2543.3,2543.1,3.95213088]
[1748884124365,15.17116611,2543.3,2543.2,3.9320541]
[1748884124527,15.17116611,2543.3,2543.1,3.95218954]
[1748884124708,15.17116611,2543.3,2543.1,0.02]
[1748884125346,15.17116611,2543.3,2543.2,3.9320541]
[1748884125748,0.39578966,2543.3,2543.2,3.9320541]
[1748884125955,13.64588491,2543.7,2543.5,3.93149369]
[1748884126253,13.64588491,2543.7,2543.4,3.93173757]
[1748884126254,13.606347,2543.7,2543.4,3.9316037]
[1748884126554,0.03953791,2543.6,2543.4,3.9316037]
[1748884127318,0.03953791,2543.6,2543.4,3.93161421]
[1748884127555,0.03953791,2543.6,2543.5,3.93159032]
[1748884127759,13.606347,2543.7,2543.4,3.93162539]
[1748884127959,0.03953791,2543.6,2543.4,3.93162539]
[1748884128333,4.20553791,2543.6,2543.4,3.93162539]
[1748884128532,4.20553791,2543.6,2543.2,0.7933]
[1748884128732,4.20553791,2543.6,2543.4,3.93163423]
[1748884129141,4.59183504,2543.6,2543.3,3.93181854]
[1748884129463,9.437347,2543.4,2543.3,3.93181854]
[1748884130549,9.437347,2543.4,2543.1,0.02]
[1748884130781,0.03953791,2543.3,2543.1,0.02]
[1748884130928,4.162,2543.2,2543.1,0.02]
[1748884131267,4.712,2543.2,2542.3,0.8257]
[1748884131561,9.437347,2542.5,2542.4,3.93319061]
[1748884135270,0.7997,2543.1,2543.0,3.93236335]
[1748884135428,0.7997,2543.1,2542.2,0.05109955]
[1748884135429,10.95464413,2543.6,2542.7,3.9328148]
[1748884135629,15.11264413,2543.6,2542.8,0.51368815]
[1748884135854,15.11264413,2543.6,2543.2,3.93203571]
[1748884136052,9.437347,2543.3,2543.2,3.93203571]
[1748884136458,13.596347,2543.3,2542.6,0.8109]
[1748884136658,9.437347,2542.9,2542.8,3.9325553]
[1748884140453,4.154,2543.1,2543.0,3.93236335]
[1748884141139,9.437347,2543.2,2543.1,3.93220872]
[1748884141458,13.590347,2543.2,2543.1,3.93220872]
[1748884143380,15.0617817,2543.2,2542.9,3.9323993]
[1748884143543,0.03953791,2543.1,2542.9,3.93238664]
[1748884143743,4.15,2543.0,2542.9,3.93238664]
[1748884143937,4.9126,2543.0,2542.8,3.93265349]
[1748884144141,9.437347,2542.9,2542.8,3.93265349]
[1748884146982,9.437347,2543.3,2543.1,3.93220872]
[1748884147178,9.437347,2543.3,2543.2,3.93193422]
[1748884147544,9.437347,2543.3,2543.1,3.93212991]
[1748884147857,4.145,2543.2,2543.1,3.93212991]
[1748884148181,13.580347,2543.3,2543.2,3.9320541]
[1748884148591,9.437347,2543.3,2543.2,3.9320541]
[1748884149206,10.9077817,2543.3,2542.9,3.93237686]
[1748884149364,9.437347,2543.0,2542.7,3.9328273]
[1748884149713,9.437347,2543.0,2542.9,3.93251799]
[1748884150003,13.578347,2543.0,2542.9,3.93251799]
[1748884151020,13.578347,2543.0,2542.5,3.9331349]
[1748884151184,13.578347,2543.0,2542.9,3.93251799]
[1748884151683,15.0190617,2543.0,2542.9,3.93251799]
[1748884151884,15.0190617,2543.0,2542.8,3.93259444]
[1748884152098,15.0190617,2543.0,2542.9,3.93251799]
[1748884152412,16.1430617,2543.0,2542.9,3.93251799]
[1748884153872,14.696347,2543.0,2542.9,3.93251799]
[1748884155019,14.696347,2543.0,2542.3,8.7925]
[1748884155020,14.696347,2543.0,2542.3,0.7925]
[1748884155248,0.7626,2542.5,2542.1,0.02]
[1748884155519,9.437347,2542.3,2542.1,0.02]
[1748884155732,5.29953791,2542.2,2542.1,3.95375555]
[1748884155909,5.29953791,2542.2,2542.1,0.02]
[1748884156149,6.7732264,2542.2,2542.1,0.02]
[1748884157109,9.437347,2542.3,2542.2,3.93360081]
[1748884157312,13.580347,2542.3,2542.2,3.93360081]
[1748884158108,4.53599953,2542.3,2542.1,0.02]
[1748884158316,9.83034653,2542.3,2542.2,3.93360081]
[1748884158516,10.561347,2542.6,2542.5,3.93313667]
[1748884158764,15.10626946,2542.6,2542.5,3.93313667]
[1748884158945,2.92621894,2543.3,2542.5,4.695792]
[1748884159131,13.579347,2543.1,2542.8,3.93260117]
[1748884159326,13.579347,2543.1,2542.6,3.93298198]
[1748884159327,0.03953791,2543.0,2542.7,3.93274438]
[1748884159630,1.124,2543.2,2543.1,3.93220872]
[1748884160039,5.268,2543.2,2542.9,3.93245452]
[1748884160232,5.268,2543.2,2542.9,3.93241033]
[1748884160432,9.437347,2543.0,2542.9,3.93241033]
[1748884161157,14.349247,2543.0,2542.2,0.8055]
[1748884161357,9.437347,2542.7,2542.2,4.73907673]
[1748884161535,9.437347,2542.7,2542.6,3.93298198]
[1748884163781,9.437347,2542.7,2542.2,3.93354272]
[1748884163934,9.437347,2542.4,2542.3,3.93344609]
[1748884164139,9.437347,2542.4,2542.2,3.93354179]
[1748884164436,9.437347,2542.4,2542.3,3.93344609]
[1748884168802,5.5089347,2542.6,2542.2,3.93357157]
[1748884168960,0.39505365,2543.1,2543.0,3.93236335]
[1748884169145,1.9129,2543.3,2543.0,3.93236335]
[1748884169146,11.350247,2543.3,2543.0,3.93229887]
[1748884169347,0.03953791,2543.2,2542.9,3.93246873]
[1748884169553,0.03953791,2543.2,2543.0,3.93234357]
[1748884169758,0.03953791,2543.2,2543.1,3.93220872]
[1748884169993,0.03953791,2543.2,2543.0,3.93227081]
[1748884170295,0.03953791,2543.2,2543.1,3.93220872]
[1748884170445,12.8997717,2543.3,2543.2,3.9320541]
[1748884170446,10.561347,2543.3,2543.2,3.9320541]
[1748884170645,1.124,2543.3,2543.2,3.9320541]
[1748884173524,10.561347,2543.3,2543.2,3.9320541]
[1748884174783,9.437347,2543.6,2543.4,3.9317449]
[1748884175078,0.03953791,2543.5,2543.4,3.9317449]
[1748884175605,0.03953791,2543.5,2543.1,0.7621]
[1748884175812,9.437347,2543.3,2543.2,3.93203881]
[1748884176099,9.437347,2543.3,2543.0,3.93228921]
[1748884176313,0.03953791,2543.2,2542.5,0.8086]
[1748884176469,9.437347,2542.8,2542.6,3.93298198]
[1748884176812,9.437347,2543.1,2543.0,3.93236335]
[1748884177105,10.554347,2543.4,2543.3,3.9318995]
[1748884177310,9.437347,2543.4,2543.3,3.9318995]
[1748884177664,4.53300793,2543.5,2543.3,3.9318995]
[1748884177665,4.53300793,2543.5,2543.4,3.9317449]
[1748884177905,4.57254584,2543.5,2543.4,3.9317449]
[1748884178108,5.97118597,2543.5,2543.3,3.93181962]
[1748884178407,9.437347,2543.4,2542.9,3.93251799]
[1748884178582,9.437347,2543.4,2543.3,3.9318995]
[1748884187113,9.437347,2543.4,2543.2,3.9320339]
[1748884187270,0.7733,2543.2,2542.9,3.9323892]
[1748884187471,9.47688491,2543.1,2542.9,3.9323892]
[1748884187796,4.123,2543.0,2542.9,3.9323892]
[1748884187972,4.16253791,2543.0,2542.9,3.9323892]
[1748884188373,4.16253791,2543.0,2542.8,3.93259864]
[1748884188700,9.437347,2542.9,2542.8,3.93259864]
[1748884190511,9.437347,2542.9,2542.7,3.93271473]
[1748884190810,0.03953791,2542.8,2542.7,3.93271473]
[1748884191375,4.15953791,2542.8,2542.6,3.93288923]
[1748884191575,5.5195264,2542.8,2542.7,3.9328273]
[1748884191893,5.28928591,2543.3,2542.0,3.93390806]
[1748884191894,1.3573347,2543.3,2543.2,3.9320541]
[1748884192075,4.119,2543.3,2543.2,3.9319262]
[1748884192276,4.15853791,2543.3,2543.2,3.9319262]
[1748884193880,0.03953791,2543.3,2543.2,3.9319262]
[1748884194091,4.15753791,2543.3,2543.2,3.9319262]
[1748884194288,5.234,2543.4,2543.3,3.9318995]
[1748884194492,5.27353791,2543.4,2543.3,3.9318995]
[1748884194689,1.15653791,2543.4,2543.3,3.9318995]
[1748884194895,1.117,2543.4,2543.3,3.9318995]
[1748884197341,0.7622,2543.9,2543.4,3.9317449]
[1748884197535,11.316547,2543.9,2543.8,3.93112666]
[1748884197847,9.437347,2543.9,2543.8,3.93112666]
[1748884198048,13.552347,2543.9,2543.8,3.93112666]
[1748884198539,9.437347,2543.9,2543.8,3.93112666]
[1748884198901,1.117,2544.0,2543.8,3.93112666]
[1748884198902,11.193,2544.2,2544.1,3.9306631]
[1748884199220,9.437347,2544.3,2544.2,3.9305086]
[1748884202795,0.7542,2544.2,2543.9,3.93088303]
[1748884203021,9.437347,2544.0,2543.9,3.93088303]
[1748884203735,13.551347,2544.3,2544.2,3.9305086]
[1748884204632,9.437347,2544.3,2544.2,3.9305086]
[1748884205942,0.49230994,2544.6,2544.5,3.93004519]
[1748884206245,4.114,2544.7,2544.6,3.92989074]
[1748884206414,0.03953791,2544.7,2544.6,3.92989074]
[1748884206739,0.02,2544.9,2544.8,3.92958189]
[1748884206944,0.02,2544.9,2544.8,5.56135465]
[1748884207141,0.02,2544.9,2544.8,13.56135465]
[1748884207340,0.02,2544.9,2544.8,13.52206446]
[1748884211070,0.02,2544.9,2544.8,13.74195733]
[1748884211275,0.02,2544.9,2544.8,13.52206446]
[1748884211637,0.02,2544.9,2544.8,13.74193534]
[1748884211980,0.02,2544.9,2544.8,13.52206446]
[1748884212520,0.02,2544.9,2544.8,13.7419578]
[1748884212723,0.02,2544.9,2544.8,13.52206446]
[1748884214237,0.02,2544.9,2544.8,13.74195675]
[1748884214443,0.02,2544.9,2544.8,13.52206446]
[1748884219052,0.02,2544.9,2544.8,9.63406446]
[1748884220834,0.02,2544.9,2544.8,17.63406446]
[1748884223936,0.02,2544.9,2544.8,18.18406446]
[1748884224235,0.02,2544.9,2544.8,18.55528746]
[1748884224440,0.02,2544.9,2544.8,18.00528746]
[1748884224736,0.02,2544.9,2544.8,18.55528746]
[1748884225442,0.02,2545.9,2545.8,4.73233833]
[1748884225667,0.02,2545.9,2545.8,5.48409004]
[1748884226043,0.02,2545.9,2545.8,4.67979004]
[1748884227554,0.02,2545.9,2545.8,4.89938939]
[1748884227753,0.02,2545.9,2545.8,4.67979004]
[1748884229080,0.02,2545.9,2545.8,13.5486632]
[1748884229289,0.02,2545.9,2545.8,13.50939004]
[1748884230466,0.02,2545.9,2545.8,4.67979004]
[1748884231067,0.02,2545.9,2545.8,4.89936368]
[1748884231271,0.02,2545.9,2545.8,4.67979004]
[1748884232081,0.02,2545.9,2545.8,4.71906224]
[1748884232279,0.02,2545.9,2545.8,12.67979004]
[1748884232759,0.02,2545.9,2545.8,13.50239004]
[1748884233258,0.02,2545.9,2545.8,13.87429166]
[1748884233751,0.02,2545.9,2545.8,14.42429166]
[1748884234387,0.8204,2546.9,2546.8,3.92649599]
[1748884235917,0.02,2546.9,2546.8,3.92649599]
[1748884238334,0.02,2546.9,2546.8,4.14606966]
[1748884238548,0.02,2546.9,2546.8,3.92649599]
[1748884239397,0.02,2546.9,2546.8,4.14605974]
[1748884239594,0.02,2546.9,2546.8,3.92649599]
[1748884239786,0.02,2546.9,2546.8,4.71180744]
[1748884240896,4.65146414,2546.9,2546.8,4.71180744]
[1748884241929,0.02,2546.9,2546.8,4.71180744]
[1748884244824,0.8222,2546.9,2546.8,3.92649599]
[1748884248501,0.8222,2546.9,2546.8,4.14594715]
[1748884248704,0.8222,2546.9,2546.8,0.21945116]
[1748884248903,0.86173791,2546.9,2546.8,0.21950752]
[1748884249115,0.7556,2546.6,2546.3,3.92722879]
[1748884249417,0.7556,2546.3,2546.1,3.92755012]
[1748884249625,4.63146414,2546.2,2546.1,3.92755012]
[1748884252305,4.63146414,2546.4,2546.3,3.92726701]
[1748884253531,0.80173791,2546.6,2546.5,3.92695857]
[1748884253843,5.39366414,2546.6,2546.5,3.92695857]
[1748884254040,5.39366414,2546.6,2546.4,3.92702387]
[1748884254237,4.67100205,2546.5,2546.4,3.92702387]
[1748884255359,4.63146414,2546.5,2546.4,3.92702387]
[1748884256573,0.7622,2546.6,2546.5,3.92695857]
[1748884256747,4.63146414,2546.7,2546.6,3.92680436]
[1748884256946,4.63146414,2546.7,2546.6,4.14619784]
[1748884257358,4.63146414,2546.7,2546.6,3.92680436]
[1748884257883,4.63146414,2546.7,2546.6,4.14619112]
[1748884258172,0.02,2546.9,2546.8,3.92649599]
[1748884260081,4.65146414,2546.9,2546.8,3.92649599]
[1748884260987,4.65146414,2546.9,2546.6,0.21938676]
[1748884261141,4.63146414,2546.7,2546.6,0.21938676]
[1748884261342,4.63146414,2546.7,2546.6,0.43884675]
[1748884261575,5.98606245,2546.7,2546.6,0.21938676]
[1748884261784,6.02560036,2546.7,2546.6,0.21938676]
[1748884262663,4.63146414,2546.7,2546.6,4.14619112]
[1748884264163,4.63146414,2546.7,2546.6,0.21938676]
[1748884264498,4.67100205,2546.7,2546.6,0.4387277]
[1748884264797,4.67100205,2546.7,2546.6,0.43872698]
[1748884264996,4.67100205,2546.7,2546.6,4.14619112]
[1748884265181,4.63146414,2546.7,2546.6,4.14619112]
[1748884265494,4.65146414,2546.9,2546.8,3.92649599]
[1748884266002,5.19609055,2546.9,2546.7,3.92655067]
[1748884266213,0.7948,2546.7,2546.6,4.14612494]
[1748884266505,5.42626414,2546.7,2546.6,4.14612494]
[1748884269300,5.42626414,2546.7,2546.6,0.21938676]
[1748884269871,5.46580205,2546.7,2546.6,0.21938676]
[1748884270067,6.4614811,2546.7,2546.6,0.21938676]
[1748884270294,6.4614811,2546.7,2546.6,4.14619112]
[1748884270490,5.42626414,2546.7,2546.6,4.14619112]
[1748884270658,5.42626414,2546.7,2546.6,4.36542342]
[1748884270863,5.42626414,2546.7,2546.6,4.14619112]
[1748884271216,5.42626414,2546.7,2546.6,0.21938676]
[1748884271863,5.42626414,2546.7,2546.6,4.14619112]
[1748884272265,5.42626414,2546.7,2546.6,0.21938676]
[1748884272266,6.02930699,2546.7,2546.6,0.21938676]
[1748884272564,6.0688449,2546.7,2546.6,0.21938676]
[1748884273104,6.6188449,2546.7,2546.6,0.21938676]
[1748884273306,0.7746,2546.5,2546.1,3.92750838]
[1748884273607,4.63146414,2546.2,2546.1,3.9275755]
[1748884275420,10.23925663,2546.5,2546.4,3.92711278]
[1748884275565,10.19971872,2546.5,2546.4,3.92711278]
[1748884275897,10.19971872,2546.5,2546.3,3.92720561]
[1748884276092,0.03953791,2546.4,2546.3,3.92720561]
[1748884281148,0.54419328,2546.4,2545.6,0.8044]
[1748884281333,9.42511872,2546.2,2545.7,0.36920273]
[1748884281523,0.50465537,2546.4,2545.8,3.92803833]
[1748884281714,0.54419328,2546.4,2546.1,3.92749425]
[1748884282032,1.0743912,2546.3,2546.2,3.92742125]
[1748884282739,0.54419328,2546.4,2546.1,3.92752985]
[1748884282903,1.09419328,2546.4,2546.2,3.92735657]
[1748884283101,1.09419328,2546.4,2546.1,3.92748679]
[1748884283936,1.09419328,2546.4,2546.2,3.92741477]
[1748884284740,0.03953791,2546.4,2546.3,3.92726701]
[1748884284939,0.03953791,2546.6,2546.5,3.92694752]
[1748884285319,0.03953791,2546.6,2546.3,3.92719721]
[1748884285320,0.03953791,2546.6,2546.1,3.92752569]
[1748884285544,0.03953791,2546.6,2545.9,3.92775745]
[1748884285545,0.03953791,2546.6,2546.3,3.92725479]
[1748884287241,9.42511872,2546.4,2546.1,3.9275193]
[1748884287536,9.42511872,2546.4,2545.7,3.92804186]
[1748884287537,4.73465237,2546.1,2545.3,0.8057]
[1748884287706,9.42511872,2545.8,2545.6,3.92826125]
[1748884287908,0.03953791,2545.7,2545.4,3.92858435]
[1748884288139,0.807,2545.6,2545.5,3.92850127]
[1748884288637,10.25121872,2545.8,2545.6,3.92834695]
[1748884288813,10.25121872,2545.8,2545.7,3.92819263]
[1748884289309,1.098,2546.0,2545.7,3.92810594]
[1748884289510,9.42511872,2545.8,2545.5,3.92841538]
[1748884289714,0.98600357,2545.7,2545.4,3.92859176]
[1748884290030,0.03953791,2545.7,2545.5,3.9284278]
[1748884290238,0.03953791,2545.7,2545.6,3.92834695]
[1748884290439,0.80383791,2545.7,2545.5,3.9284236]
[1748884290648,0.80383791,2545.7,2545.4,3.92858075]
[1748884291533,1.20104169,2545.7,2545.0,4.73764523]
[1748884291732,1.20104169,2545.7,2545.4,3.92864784]
[1748884291900,3.06716232,2545.7,2545.3,3.9287605]
[1748884292105,3.06716232,2545.7,2545.4,3.92858077]
[1748884292788,9.42511872,2545.5,2545.1,3.92904682]
[1748884293075,0.8177,2545.3,2545.1,3.92904682]
[1748884293272,0.8177,2545.3,2544.8,3.9294623]
[1748884293273,9.46465663,2545.2,2544.8,3.9294623]
[1748884293570,9.42511872,2545.2,2544.9,3.92937343]
[1748884293771,0.03953791,2545.1,2544.9,3.92937343]
[1748884295337,0.8177,2545.3,2544.9,4.71528767]
[1748884295557,0.8143,2545.5,2545.3,3.92869468]
[1748884295775,0.03953791,2545.4,2545.2,3.92888257]
[1748884296076,9.42511872,2545.3,2545.0,3.929122]
[1748884296382,0.03953791,2545.2,2545.0,3.929122]
[1748884296551,0.03953791,2545.2,2545.1,3.92900979]
[1748884296737,9.42511872,2545.3,2545.2,3.92896432]
[1748884297339,4.63254765,2545.3,2545.2,3.92896432]
[1748884300788,4.63254765,2545.3,2544.7,3.92973631]
[1748884301009,4.63254765,2544.8,2544.7,3.92973631]
[1748884305478,4.63254765,2545.0,2544.9,3.92930995]
[1748884306499,4.67208556,2545.0,2544.9,3.92930995]
[1748884307260,4.67208556,2545.0,2544.9,3.92942748]
[1748884307457,4.63254765,2545.0,2544.9,3.92942748]
[1748884310110,4.63254765,2545.0,2544.5,3.93004519]
[1748884310311,0.03953791,2544.9,2544.8,3.92942789]
[1748884311311,4.63254765,2545.0,2544.9,3.92942748]
[1748884312963,0.7503,2545.4,2544.9,4.72462748]
[1748884313166,4.63254765,2545.4,2545.3,3.92880996]
[1748884313424,1.49520378,2545.7,2545.5,3.92850127]
[1748884313630,7.071,2546.2,2545.4,0.7952]
[1748884313870,2.47503103,2546.3,2546.2,3.92742125]
[1748884314118,2.47503103,2546.3,2545.9,0.7952]
[1748884314283,4.63254765,2546.1,2546.0,3.92770277]
[1748884314818,5.34725931,2546.1,2545.9,3.92785374]
[1748884314986,0.03953791,2546.0,2545.9,3.92785374]
[1748884315419,5.34725931,2546.1,2546.0,3.92772977]
[1748884315420,4.63254765,2546.1,2546.0,3.92772977]
[1748884316114,0.03953791,2546.2,2546.1,3.9275755]
[1748884316437,4.67208556,2546.2,2546.1,3.9275755]
[1748884316588,4.67208556,2546.2,2546.0,3.92764853]
[1748884316788,4.67208556,2546.2,2546.1,3.9275755]
[1748884317520,4.63254765,2546.2,2546.1,3.9275755]
[1748884320629,4.63254765,2546.2,2546.0,3.92766413]
[1748884320769,0.03953791,2546.1,2546.0,3.92766413]
[1748884321829,4.63254765,2546.2,2546.1,3.9275755]
[1748884324295,5.90763723,2546.2,2546.0,3.92763214]
[1748884324513,4.63254765,2546.2,2546.1,3.9275755]
[1748884324727,2.47503103,2546.3,2546.2,3.92742125]
[1748884324935,7.10757868,2546.3,2546.2,3.92742125]
[1748884325093,7.14711659,2546.3,2546.0,3.92772185]
[1748884325432,7.14711659,2546.3,2546.0,3.92772977]
[1748884325433,4.63254765,2546.1,2546.0,3.92772977]
[1748884326686,4.63254765,2546.1,2545.9,3.9278266]
[1748884326883,4.63254765,2546.1,2546.0,3.92772977]
[1748884327313,5.42567552,2546.1,2546.0,3.92772977]
[1748884328430,4.63254765,2546.1,2546.0,3.92772977]
[1748884329345,4.63254765,2546.1,2545.7,0.7952]
[1748884329619,4.63254765,2545.9,2545.8,3.92803833]
[1748884330338,4.63254765,2545.9,2545.5,8.8183]
[1748884330339,8.73654765,2545.9,2545.5,3.92846447]
[1748884330494,4.63254765,2545.6,2545.5,3.92839107]
[1748884330699,4.63254765,2545.6,2545.5,11.92839107]
[1748884330899,4.63254765,2545.6,2545.4,3.92853678]
[1748884331108,0.03953791,2545.5,2545.4,3.92853678]
[1748884332388,0.03953791,2545.5,2545.3,3.92877915]
[1748884332589,4.63254765,2545.4,2545.3,3.92877915]
[1748884333299,4.63254765,2545.4,2545.2,3.92888508]
[1748884333504,0.03953791,2545.3,2545.2,3.92888508]
[1748884333713,0.03953791,2545.3,2545.1,11.92903615]
[1748884333903,4.63254765,2545.2,2545.1,11.92903615]
[1748884334629,4.63254765,2545.2,2545.0,3.92919433]
[1748884334815,0.03953791,2545.1,2544.9,3.92931775]
[1748884335130,4.63254765,2545.0,2544.9,11.92931775]
[1748884335690,4.63254765,2545.0,2544.9,3.92931775]
[1748884335913,4.67208556,2545.0,2544.9,3.92931775]
[1748884336127,4.63254765,2545.0,2544.9,3.92931775]
[1748884336425,4.63254765,2545.0,2544.6,8.7952]
[1748884336648,4.63254765,2544.8,2544.3,0.7974]
[1748884336952,4.63254765,2544.6,2544.5,3.93004519]
[1748884337150,4.63254765,2544.6,2544.5,11.93004519]
[1748884339041,4.63254765,2544.8,2544.6,3.92989074]
[1748884339249,4.63254765,2544.8,2544.7,3.92973631]
[1748884339431,4.9241,2545.0,2544.9,3.92942748]
[1748884339432,4.63254765,2545.0,2544.9,3.92942748]
[1748884339764,4.63254765,2545.2,2545.1,3.92911869]
[1748884340121,1.8936,2545.4,2544.8,0.8286]
[1748884340122,0.7976,2545.4,2545.3,3.92880996]
[1748884340320,8.73654765,2545.4,2545.2,3.92882248]
[1748884340520,0.03953791,2545.3,2545.2,3.92882248]
[1748884341445,1.57674647,2545.3,2544.9,3.92936319]
[1748884341621,4.63254765,2545.0,2544.9,3.92936319]
[1748884342751,4.63254765,2545.0,2544.8,3.92951709]
[1748884342920,4.67208556,2544.9,2544.8,3.92951709]
[1748884343522,4.67208556,2544.9,2544.7,3.92966298]
[1748884343728,4.67208556,2544.9,2544.6,3.92988089]
[1748884343958,4.63254765,2544.7,2544.5,3.92997137]
[1748884344265,0.03953791,2544.6,2544.5,3.92997137]
[1748884344681,0.03953791,2544.6,2544.3,3.93033894]
[1748884344980,4.63254765,2544.4,2544.3,3.93033894]
[1748884345478,4.67208556,2544.4,2544.3,3.93033894]
[1748884345686,6.36659412,2544.4,2544.1,0.02]
[1748884345828,5.18254765,2544.2,2544.1,0.02]
[1748884346134,8.77608556,2544.2,2544.1,0.02]
[1748884346325,8.73654765,2544.2,2544.1,3.9506631]
[1748884347363,4.104,2544.2,2544.1,0.02]
[1748884347524,5.25340877,2544.2,2544.1,0.02]
[1748884348824,4.104,2544.2,2544.1,3.9506631]
[1748884349021,4.14353791,2544.2,2544.1,0.02]
[1748884349425,4.14353791,2544.2,2544.1,3.9506631]
[1748884349862,9.44211914,2544.3,2544.2,3.9305086]
[1748884352063,1.3575,2544.8,2544.2,3.93040562]
[1748884352263,5.23953791,2544.7,2544.5,3.92994821]
[1748884352447,5.23953791,2544.7,2544.4,3.93013275]
[1748884352871,5.23953791,2544.7,2544.5,3.93003511]
[1748884353058,9.44211914,2544.6,2544.2,3.93046892]
[1748884353258,0.03953791,2544.5,2544.3,3.93034327]
[1748884353476,0.03953791,2544.5,2544.1,0.02]
[1748884353690,9.44211914,2544.3,2544.1,3.95059358]
[1748884353974,9.44211914,2544.3,2544.1,0.02]
[1748884353975,0.03953791,2544.2,2544.1,0.02]
[1748884354183,0.03953791,2544.2,2544.1,3.9506631]
[1748884355481,9.44211914,2544.3,2544.2,3.9305086]
[1748884355780,0.66718632,2544.6,2544.1,3.9506631]
[1748884355781,15.30830546,2544.6,2544.4,3.93010037]
[1748884355976,0.03953791,2544.5,2544.4,3.93010037]
[1748884356360,4.53874324,2544.7,2544.6,3.92989074]
[1748884356554,4.76939476,2544.7,2544.6,3.92989074]
[1748884356754,4.76939476,2544.7,2544.5,3.92997614]
[1748884357267,4.76939476,2544.7,2544.6,3.92989074]